fUSD/lending_fUSD_20241122
["ID","MTS","AMOUNT","RATE_DAILY","PERIOD"]
[343022496,1732290646492,-201.0,0.00093119,120]
[343022497,1732290646502,-436.59686912,0.00095,120]
[343022498,1732290646513,-9859.79986,0.00095,120]
[343022499,1732290646529,-33119.85999956,0.00095,120]
[343022500,1732290646541,-63104.77965005,0.00095,120]
[343022501,1732290646550,-2524.0,0.00095,11]
[343022502,1732290646559,-806.98243,0.0009504,120]
[343022503,1732290646569,-806.98244,0.0009515,120]
[343022504,1732290646578,-788.0,0.00095236,120]
[343022505,1732290646588,-433.47,0.00095278,60]
[343022506,1732290646599,-361.66,0.0009537,120]
[343022507,1732290646608,-2501.38810982,0.00095456,15]
[343022508,1732290646618,-4024.4942,0.0009569,120]
[343022509,1732290646632,-671.9989,0.0009569,30]
[343022510,1732290646642,-200.0,0.000957,120]
[343022511,1732290646651,-806.98244,0.0009578,120]
[343022512,1732290646661,-446.8958,0.0009579,2]
[343022513,1732290646670,-200.0,0.000958,120]
[343022514,1732290646680,-505.76463489,0.0009589,120]
[343022515,1732290646690,-500.0,0.0009589,120]
[343022516,1732290646699,-500.0,0.0009589,120]
[343022517,1732290646709,-643.83,0.0009589,120]
[343022518,1732290646719,-388.85710435,0.0009589,120]
[343022519,1732290646728,-500.0,0.0009589,120]
[343022520,1732290646738,-500.0,0.0009589,120]
[343022521,1732290646748,-14174.91800883,0.000959,120]
[343022522,1732290646757,-1000.0,0.000959,14]
[343022523,1732290646767,-259.04,0.00095989,120]
[343022524,1732290646776,-482.77056395,0.00095999,120]
[343022525,1732290646787,-503.55351757,0.00095999,120]
[343022526,1732290646797,-500.0,0.00095999,120]
[343022527,1732290646808,-500.0,0.00095999,120]
[343022528,1732290646819,-500.0,0.00095999,120]
[343022529,1732290646829,-450.93,0.00095999,120]
[343022530,1732290646841,-500.0,0.00095999,120]
[343022531,1732290646851,-398.86,0.00095999,120]
[343022532,1732290646861,-500.0,0.00095999,120]
[343022533,1732290646871,-500.0,0.00095999,120]
[343022534,1732290646882,-186.241527,0.00095999,120]
[343022535,1732290646894,-265.140117,0.00095999,120]
[343022536,1732290646905,-500.0,0.00095999,120]
[343022537,1732290646915,-500.0,0.00095999,120]
[343022538,1732290646926,-8527.07428153,0.00096,120]
[343022539,1732290646936,-27580.43554321,0.00096,120]
[343022540,1732290646948,-11520.75239811,0.00096,120]
[343022541,1732290646958,-15114.70763953,0.00096,120]
[343022542,1732290646969,-1374.0,0.00096,120]
[343022543,1732290646979,-9181.85796236,0.00096,120]
[343022546,1732291210710,200.0,9.6e-05,2]
[343022548,1732291313694,6116.68490501,0.00051,120]
[343022549,1732291381456,1499.999999,0.000451,2]
[343022550,1732291412543,250.0,0.00031,2]
[343022551,1732291466669,272.13467542,0.00038,120]
[343022552,1732291474961,272.13467542,0.0004,120]
[343022553,1732291483259,544.26935084,0.00043,120]
[343022554,1732291490425,428.40426529,0.0004502,2]
[343022555,1732291491593,680.33668855,0.00046,120]
[343022556,1732291500170,680.33668856,0.00048,120]
[343022557,1732291503185,46842.988444,0.00049,120]
[343022558,1732291626154,-1371.36,0.000626,7]
[343022559,1732291626179,-3000.0,0.00063,2]
[343022560,1732291626201,-156.82,0.0006343,120]
[343022561,1732291626221,-156.799,0.0006863,120]
[343022562,1732291626243,-156.756,0.0007383,120]
[343022563,1732291626264,-156.744,0.0007903,120]
[343022564,1732291626286,-309.3953778,0.0008,120]
[343022565,1732291626306,-1227.50851683,0.000822,120]
[343022566,1732291633202,-412.62770169,0.000822,120]
[343022567,1732291634095,-150.64806103,0.000822,120]
[343022568,1732291647610,157.68,0.00041096,2]
[343022569,1732291649103,-157.68,0.00073059,120]
[343022570,1732291649127,-8.3709947,0.000822,120]
[343022579,1732291771723,1330.07297396,0.00051,30]
[343022580,1732291771745,1688.07039479,0.00051,30]
[343022581,1732291771770,1650.57153043,0.00051,30]
[343022582,1732291771791,2129.4322,0.00051,30]
[343022583,1732291771813,1451.0348111,0.00051,30]
[343022584,1732291771835,220.01204151,0.00051,30]
[343022597,1732291819701,1225.46253305,0.00048641,16]
[343022598,1732291819723,2205.0,0.00048641,16]
[343022599,1732291819745,1199.25731039,0.00048641,16]
[343022600,1732291819767,3870.28015656,0.00048641,16]
[343022602,1732291831661,-272.13467542,0.00045095,120]
[343022603,1732291831671,-1489.0,0.00045095,120]
[343022604,1732291831680,-500.0,0.00066,120]
[343022605,1732291831689,-197.99110958,0.000819,2]
[343022606,1732291831698,-187.27,0.00082,2]
[343022607,1732291831707,-151.0,0.00082,120]
[343022608,1732291831716,-622.4318295,0.000822,120]
[343022609,1732291831725,-1000.0,0.000822,120]
[343022610,1732291831735,-1000.0,0.000822,120]
[343022611,1732291831744,-156.752,0.0008423,120]
[343022612,1732291831752,-1500.0,0.00085421,120]
[343022613,1732291831762,-1200.0,0.00086421,120]
[343022614,1732291831772,-1867.47552874,0.00086451,120]
[343022615,1732291831784,-1200.0,0.00087421,120]
[343022616,1732291831918,-279.56300997,0.00088192,7]
[343022617,1732291831930,-8779.04699003,0.00088192,7]
[343022618,1732291831940,-751.439,0.00088492,120]
[343022619,1732291831949,-300.0,0.00088999,20]
[343022620,1732291831958,-13292.35418592,0.00089,120]
[343022621,1732291831985,-32828.64581408,0.00089,120]
[343022622,1732291831994,-1385.0,0.000893,120]
[343022623,1732291832004,-156.747,0.0008943,120]
[343022624,1732291832013,-1000.0,0.0009,120]
[343022625,1732291832022,-24183.90966202,0.00091,120]
[343022626,1732291832034,-8045.77902411,0.00091,120]
[343022627,1732291832043,-1500.0,0.00091242,120]
[343022628,1732291832052,-1500.0,0.00091242,120]
[343022629,1732291832063,-1000.0,0.00091647,120]
[343022630,1732291832076,-169.0,0.00091737,30]
[343022631,1732291832085,-700.0,0.00091875,120]
[343022632,1732291832094,-171.98,0.00092025,2]
[343022633,1732291832103,-700.0,0.00092149,120]
[343022634,1732291832113,-170.44,0.00092182,120]
[343022635,1732291832122,-700.0,0.00092423,120]
[343022636,1732291832132,-250.0,0.0009247,120]
[343022637,1732291832140,-700.0,0.00092697,120]
[343022639,1732291832149,-700.0,0.00092971,120]
[343022640,1732291832159,-200.0,0.0009298,30]
[343022641,1732291832168,-166.0,0.0009301,120]
[343022642,1732291832180,-166.0,0.0009301,120]
[343022643,1732291832190,-166.0,0.0009301,120]
[343022644,1732291832200,-166.0,0.0009301,120]
[343022645,1732291832210,-166.0,0.0009301,120]
[343022646,1732291832219,-166.0,0.0009301,120]
[343022647,1732291832228,-166.0,0.0009301,120]
[343022648,1732291832237,-166.0,0.0009301,120]
[343022649,1732291832248,-166.0,0.0009301,120]
[343022650,1732291832259,-166.0,0.0009301,120]
[343022651,1732291832268,-166.0,0.0009301,120]
[343022652,1732291832278,-166.0,0.0009301,120]
[343022653,1732291832287,-166.0,0.0009301,120]
[343022654,1732291832298,-166.0,0.0009301,120]
[343022655,1732291832307,-166.0,0.0009301,120]
[343022656,1732291832318,-166.0,0.0009301,120]
[343022657,1732291832328,-166.0,0.0009301,120]
[343022658,1732291832337,-166.0,0.0009301,120]
[343022659,1732291832347,-166.0,0.0009301,120]
[343022660,1732291832356,-166.0,0.0009301,120]
[343022661,1732291832366,-166.0,0.0009301,120]
[343022662,1732291832376,-166.0,0.0009301,120]
[343022663,1732291832385,-166.0,0.0009301,120]
[343022664,1732291832395,-166.0,0.0009301,120]
[343022665,1732291832404,-166.0,0.0009301,120]
[343022666,1732291832414,-166.0,0.0009301,120]
[343022667,1732291832423,-166.0,0.0009301,120]
[343022668,1732291832432,-166.0,0.0009301,120]
[343022669,1732291832442,-166.0,0.0009301,120]
[343022670,1732291832451,-166.0,0.0009301,120]
[343022671,1732291832460,-166.0,0.0009301,120]
[343022672,1732291832469,-166.0,0.0009301,120]
[343022673,1732291832479,-166.0,0.0009301,120]
[343022674,1732291832487,-166.0,0.0009301,120]
[343022675,1732291832497,-166.0,0.0009301,120]
[343022676,1732291832506,-166.0,0.0009301,120]
[343022677,1732291832515,-166.0,0.0009301,120]
[343022678,1732291832524,-166.0,0.0009301,120]
[343022679,1732291832534,-166.0,0.0009301,120]
[343022680,1732291832543,-166.0,0.0009301,120]
[343022681,1732291832552,-166.0,0.0009301,120]
[343022682,1732291832562,-166.0,0.0009301,120]
[343022683,1732291832575,-166.0,0.0009301,120]
[343022684,1732291832584,-166.0,0.0009301,120]
[343022685,1732291832593,-166.0,0.0009301,120]
[343022686,1732291832602,-166.0,0.0009301,120]
[343022687,1732291832611,-166.0,0.0009301,120]
[343022688,1732291832620,-166.0,0.0009301,120]
[343022689,1732291832629,-166.0,0.0009301,120]
[343022690,1732291832638,-166.0,0.0009301,120]
[343022691,1732291832647,-166.0,0.0009301,120]
[343022692,1732291832656,-166.0,0.0009301,120]
[343022693,1732291832665,-166.0,0.0009301,120]
[343022694,1732291832675,-166.0,0.0009301,120]
[343022695,1732291832685,-166.0,0.0009301,120]
[343022696,1732291832694,-166.0,0.0009301,120]
[343022697,1732291832703,-166.0,0.0009301,120]
[343022698,1732291832713,-166.0,0.0009301,120]
[343022699,1732291832722,-166.0,0.0009301,120]
[343022700,1732291832731,-166.0,0.0009301,120]
[343022701,1732291832740,-166.0,0.0009301,120]
[343022702,1732291832749,-166.0,0.0009301,120]
[343022703,1732291832758,-166.0,0.0009301,120]
[343022704,1732291832767,-166.0,0.0009301,120]
[343022705,1732291832776,-166.0,0.0009301,120]
[343022706,1732291832785,-166.0,0.0009301,120]
[343022707,1732291832795,-166.0,0.0009301,120]
[343022708,1732291832804,-166.0,0.0009301,120]
[343022709,1732291832813,-166.0,0.0009301,120]
[343022710,1732291832824,-166.0,0.0009301,120]
[343022711,1732291832833,-166.0,0.0009301,120]
[343022712,1732291832842,-166.0,0.0009301,120]
[343022713,1732291832851,-166.0,0.0009301,120]
[343022714,1732291832860,-166.0,0.0009301,120]
[343022715,1732291832869,-166.0,0.0009301,120]
[343022716,1732291832879,-166.0,0.0009301,120]
[343022717,1732291832887,-166.0,0.0009301,120]
[343022718,1732291832897,-166.0,0.0009301,120]
[343022719,1732291832906,-166.0,0.0009301,120]
[343022720,1732291832915,-166.0,0.0009301,120]
[343022721,1732291832924,-166.0,0.0009301,120]
[343022722,1732291832933,-166.0,0.0009301,120]
[343022723,1732291832942,-166.0,0.0009301,120]
[343022724,1732291832952,-166.0,0.0009301,120]
[343022725,1732291832961,-166.0,0.0009301,120]
[343022726,1732291832970,-166.0,0.0009301,120]
[343022727,1732291832979,-166.0,0.0009301,120]
[343022728,1732291832988,-166.0,0.0009301,120]
[343022729,1732291832997,-166.0,0.0009301,120]
[343022730,1732291833006,-166.0,0.0009301,120]
[343022731,1732291833016,-166.0,0.0009301,120]
[343022732,1732291833025,-166.0,0.0009301,120]
[343022733,1732291833035,-166.0,0.0009301,120]
[343022734,1732291833045,-166.0,0.0009301,120]
[343022735,1732291833055,-166.0,0.0009301,120]
[343022736,1732291833064,-166.0,0.0009301,120]
[343022737,1732291833077,-166.0,0.0009301,120]
[343022738,1732291833086,-250.0,0.00093034,120]
[343022739,1732291833096,-7506.95852109,0.00093118,120]
[343022740,1732291833109,-7650.73635328,0.00093118,120]
[343022741,1732291833149,-2378.5878205,0.00093118,120]
[343022742,1732291833166,-1520.17439098,0.00093118,120]
[343022743,1732291833178,-546.70831491,0.00093118,120]
[343022744,1732291833193,-39595.2337876,0.00093118,120]
[343022745,1732291833206,-922.22742899,0.00093118,120]
[343022746,1732291833217,-861.82814056,0.00093118,120]
[343022761,1732291837593,-1104.38298245,0.00089417,120]
[343022762,1732291837603,-6295.11370366,0.00093118,120]
[343022763,1732291837615,-33882.68647944,0.00093118,120]
[343022764,1732291837624,-1692.03,0.00093146,120]
[343022765,1732291837633,-678.01898496,0.00093173,18]
[343022766,1732291837643,-500.0,0.0009318,2]
[343022767,1732291837652,-700.0,0.00093245,120]
[343022768,1732291837661,-330.0,0.000935,120]
[343022769,1732291837670,-289.32,0.00093517,120]
[343022770,1732291837679,-397.6185356,0.00093675,120]
[343022771,1732291837690,-313.6514644,0.00093675,120]
[343022772,1732291837699,-209.44026067,0.00093728,2]
[343022773,1732291837708,-700.0,0.00093793,120]
[343022774,1732291837717,-1162.0,0.00093832,120]
[343022775,1732291837727,-0.38646696,0.00093832,120]
[343022776,1732291837738,-1092.61353304,0.00093832,120]
[343022777,1732291837747,-101.80409299,0.00094,120]
[343022778,1732291837758,-1169.55400002,0.00094,120]
[343022779,1732291837768,-7803.3514352,0.00094,120]
[343022780,1732291837779,-10056.52957138,0.00094,120]
[343022781,1732291837792,-868.76090041,0.00094,120]
[343022782,1732291837804,-338.38421201,0.00094,120]
[343022783,1732291837814,-1292.29389523,0.00094,120]
[343022784,1732291837831,-707.70610477,0.00094,120]
[343022785,1732291837842,-761.9301859,0.00094212,120]
[343022786,1732291837854,-250.0,0.00094228,120]
[343022787,1732291837865,-558.05716452,0.00094265,120]
[343022788,1732291837878,-192.94283548,0.00094265,120]
[343022789,1732291837889,-171.98,0.00094289,2]
[343022790,1732291837899,-700.0,0.00094341,120]
[343022791,1732291837909,-929.64900516,0.000945,120]
[343022792,1732291837920,-1118.94582766,0.000945,120]
[343022793,1732291837932,-12746.54760056,0.000945,120]
[343022794,1732291837942,-156.798,0.0009463,120]
[343022795,1732291837952,-700.0,0.00094889,120]
[343022796,1732291837962,-160.08090161,0.0009489,15]
[343022797,1732291837973,-30818.14203764,0.000949,120]
[343022798,1732291837983,-363.04859128,0.00094942,2]
[343022799,1732291837993,-34673.3513428,0.0009499,10]
[343022800,1732291838003,-20000.0,0.00095,8]
[343022801,1732291838014,-20000.0,0.00095,120]
[343022802,1732291838024,-36274.96082438,0.00095,120]
[343022803,1732291838037,-11852.860275,0.00095,120]
[343022804,1732291838049,-196549.99999998,0.00095,120]
[343022805,1732291838061,-300.92490967,0.00095,120]
[343022806,1732291838075,-5021.25399097,0.00095,120]
[343022807,1732291838085,-193.39,0.00095044,120]
[343022808,1732291838096,-1943.33300201,0.00095055,120]
[343022809,1732291838106,-751.0,0.00095236,120]
[343022810,1732291838116,-9565.10559683,0.0009525,120]
[343022811,1732291838129,-1904.997603,0.0009525,120]
[343022812,1732291838142,-2403.78704119,0.0009525,120]
[343022823,1732291838468,8500.0,0.00048633,16]
[343022826,1732291839548,-698.97774385,0.0009525,120]
[343022827,1732291839603,-1018.30141519,0.0009525,120]
[343022828,1732291839615,-601.71300565,0.0009525,120]
[343022829,1732291839626,-1469.13624582,0.0009525,120]
[343022830,1732291839707,-350.23355961,0.0009525,120]
[343022831,1732291839762,-1987.74778886,0.0009525,120]
[343022832,1732291839772,-500.0,0.000954,120]
[343022833,1732291839782,-2687.83391784,0.000954,15]
[343022834,1732291839792,-751.8985,0.000954,120]
[343022835,1732291839802,-583.55751694,0.000954,30]
[343022836,1732291839814,-1916.44248306,0.000954,30]
[343022837,1732291839826,-5268.73068094,0.00095427,10]
[343022838,1732291839837,-6943.45791234,0.00095427,10]
[343022839,1732291839848,-4320.54613207,0.00095427,10]
[343022840,1732291839860,-1211.94946612,0.00095427,10]
[343022848,1732291842712,-284.1509994,0.00095427,10]
[343022849,1732291842725,-322.1904179,0.00095427,10]
[343022850,1732291842738,-3792.97760677,0.00095427,10]
[343022851,1732291842751,-12529.34812726,0.00095427,10]
[343022852,1732291842761,-700.0,0.00095437,120]
[343022853,1732291842771,-7579.82835944,0.00095488,120]
[343022854,1732291842784,-35305.23360127,0.00095488,120]
[343022855,1732291842797,-31297.72882651,0.00095488,120]
[343022856,1732291842807,-5299.06276938,0.0009549,10]
[343022857,1732291842819,-29374.28857342,0.0009549,10]
[343022858,1732291842831,-1970.74114555,0.000955,120]
[343022859,1732291842844,-5833.59554326,0.000955,120]
[343022860,1732291842856,-12195.66331119,0.000955,120]
[343022861,1732291842868,-50000.0,0.000955,120]
[343022862,1732291842879,-50000.0,0.000955,120]
[343022863,1732291842892,-232.31473143,0.000955,30]
[343022864,1732291842903,-20000.0,0.0009551,120]
[343022865,1732291842914,-28744.2868969,0.0009558,10]
[343022866,1732291842925,-522909.64479359,0.0009559,62]
[343022867,1732291842935,-3037.46851001,0.0009559,120]
[343022868,1732291842946,-34673.3513428,0.0009559,11]
[343022869,1732291842955,-28744.2868969,0.0009559,10]
[343022870,1732291842967,-33330.87920078,0.000956,120]
[343022871,1732291842980,-16669.12079922,0.000956,120]
[343022872,1732291842992,-1400.0,0.000956,34]
[343022873,1732291843002,-160.08090157,0.00095606,15]
[343022874,1732291843013,-28744.2868969,0.0009568,10]
[343022875,1732291843023,-28744.2868969,0.00095688,10]
[343022876,1732291843034,-2073.34084634,0.0009569,11]
[343022877,1732291843047,-485.305,0.0009569,11]
[343022917,1732291844738,-32114.70549646,0.0009569,11]
[343022918,1732291844751,-57488.5737938,0.0009569,10]
[343022919,1732291844760,-100000.0,0.000957,120]
[343022920,1732291844770,-2800.0,0.000957,34]
[343022921,1732291844779,-156.96499391,0.00095748,120]
[343022922,1732291844788,-28744.2868969,0.0009578,10]
[343022923,1732291844798,-34673.3513428,0.0009579,11]
[343022924,1732291844807,-4300.0,0.000958,34]
[343022925,1732291844818,-532.01876,0.0009581,120]
[343022926,1732291844829,-5541.51518183,0.0009589,120]
[343022927,1732291844838,-500.0,0.0009589,120]
[343022928,1732291844848,-500.0,0.0009589,120]
[343022929,1732291844858,-500.0,0.0009589,120]
[343022930,1732291844867,-500.0,0.0009589,120]
[343022931,1732291844875,-500.0,0.0009589,120]
[343022932,1732291844885,-480.85037029,0.0009589,120]
[343022933,1732291844894,-500.0,0.0009589,120]
[343022934,1732291844904,-521.86,0.0009589,120]
[343022935,1732291844915,-500.0,0.0009589,120]
[343022936,1732291844924,-500.0,0.0009589,120]
[343022937,1732291844933,-167.0657379,0.00095899,120]
[343022938,1732291844943,-678.01898496,0.000959,19]
[343022939,1732291844952,-8468.2332,0.000959,120]
[343022940,1732291844962,-244.934,0.000959,120]
[343022941,1732291844971,-5000.0,0.000959,120]
[343022942,1732291844981,-2687.83391778,0.000959,15]
[343022943,1732291844991,-5700.0,0.000959,35]
[343022944,1732291845000,-28744.2868969,0.00095967,10]
[343022945,1732291845010,-28744.2868969,0.0009597,10]
[343022946,1732291845020,-150.0,0.00095973,120]
[343022947,1732291845030,-150.0,0.00095973,120]
[343022948,1732291845039,-150.0,0.00095973,120]
[343022949,1732291845050,-150.55868437,0.00095973,120]
[343022950,1732291845059,-150.0,0.00095973,120]
[343022951,1732291845069,-150.0,0.00095973,120]
[343022952,1732291845080,-150.70001751,0.00095973,120]
[343022953,1732291845090,-34673.3513428,0.00095977,11]
[343022954,1732291845099,-34673.3513428,0.0009598,11]
[343022955,1732291845109,-143721.434485,0.0009598,10]
[343022956,1732291845118,-34673.3513428,0.0009598,11]
[343022957,1732291845128,-700.0,0.00095985,120]
[343022958,1732291845138,-500.0,0.00095988,120]
[343022959,1732291845147,-500.0,0.00095988,120]
[343022960,1732291845157,-500.0,0.00095988,120]
[343022961,1732291845172,-915.26141812,0.00095988,120]
[343022962,1732291845182,-28744.2868969,0.00095989,10]
[343022963,1732291845191,-242713.4594,0.00095989,11]
[343022964,1732291845201,-172465.721381,0.00095989,10]
[343022965,1732291845212,-34673.3513428,0.0009599,11]
[343022966,1732291845222,-34673.3513428,0.0009599,11]
[343022967,1732291845232,-9990.38795166,0.0009599,120]
[343022968,1732291845243,-234.50387696,0.00095998,120]
[343022969,1732291845254,-497.91,0.00095998,120]
[343022970,1732291845263,-1000.0,0.00095999,120]
[343022971,1732291845273,-24664.75377801,0.00095999,120]
[343022972,1732291845282,-500.0,0.00095999,120]
[343022973,1732291845291,-500.0,0.00095999,120]
[343022974,1732291845300,-593.6,0.00095999,120]
[343022975,1732291845309,-50000.0,0.00096,72]
[343022976,1732291845318,-50000.0,0.00096,120]
[343022977,1732291845329,-50000.0,0.00096,120]
[343022978,1732291845338,-10776.98,0.00096,120]
[343022979,1732291845348,-12499.99,0.00096,120]
[343022980,1732291845357,-12499.98,0.00096,120]
[343022981,1732291845366,-12500.0,0.00096,120]
[343022983,1732291845375,-532.01876,0.00096,120]
[343022985,1732291845385,-1000.0,0.00096,120]
[343022986,1732291845394,-1000.0,0.00096,120]
[343022987,1732291845403,-765.74205276,0.00096021,120]
[343022988,1732291845412,-12500.0,0.0009605,120]
[343022989,1732291845422,-413.22955662,0.00096058,120]
[343022990,1732291845432,-12500.0,0.000961,120]
[343022991,1732291845443,-564.29226443,0.00096103,120]
[343022992,1732291845454,-765.74205276,0.00096104,120]
[343022993,1732291845463,-413.22955662,0.00096124,120]
[343022994,1732291845472,-12500.0,0.0009615,120]
[343022996,1732291845481,-3995.028129,0.00096162,120]
[343022997,1732291845491,-2681.92031783,0.00096178,119]
[343022998,1732291845500,-200.0,0.000962,120]
[343023000,1732291845510,-12500.0,0.000962,120]
[343023001,1732291845519,-751.0,0.00096208,120]
[343023002,1732291845528,-3995.028129,0.00096231,120]
[343023003,1732291845538,-12500.0,0.0009625,120]
[343023004,1732291845547,-500.0,0.00096252,120]
[343023005,1732291845556,-500.0,0.00096252,120]
[343023006,1732291845566,-500.0,0.00096252,120]
[343023007,1732291845576,-916.74,0.00096252,120]
[343023008,1732291845587,-500.0,0.00096252,120]
[343023009,1732291845596,-59578.456,0.00096254,30]
[343023010,1732291845605,-626.1857,0.00096254,120]
[343023011,1732291845614,-500.0,0.00096257,120]
[343023012,1732291845624,-413.22955662,0.00096258,120]
[343023013,1732291845633,-200.0,0.000963,120]
[343023014,1732291845643,-12500.0,0.000963,120]
[343023015,1732291845651,-160.08090157,0.00096321,15]
[343023016,1732291845660,-545.038209,0.00096333,120]
[343023017,1732291845668,-545.038209,0.00096333,120]
[343023018,1732291845676,-194.967649,0.00096333,120]
[343023019,1732291845686,-194.967649,0.00096333,120]
[343023020,1732291845696,-151.0,0.00096333,120]
[343023021,1732291845705,-151.0,0.00096333,120]
[343023022,1732291845715,-600.3412252,0.00096343,120]
[343023023,1732291845724,-500.0,0.00096343,120]
[343023024,1732291845733,-500.0,0.00096343,120]
[343023025,1732291845742,-500.0,0.00096343,120]
[343023026,1732291845751,-272.20964229,0.00096343,120]
[343023027,1732291845761,-916.74,0.00096343,120]
[343023028,1732291845770,-916.74,0.00096343,120]
[343023029,1732291845779,-500.0,0.00096343,120]
[343023030,1732291845789,-500.0,0.00096343,120]
[343023031,1732291845800,-157.0,0.00096343,75]
[343023032,1732291845810,-7687.15,0.0009635,120]
[343023033,1732291845819,-1000.0,0.00096353,120]
[343023034,1732291845830,-500.0,0.00096353,120]
[343023035,1732291845839,-618.88374641,0.00096353,120]
[343023036,1732291845848,-916.74,0.00096353,120]
[343023037,1732291845858,-916.74,0.00096353,120]
[343023038,1732291845867,-916.74,0.00096353,120]
[343023039,1732291845877,-500.0,0.00096353,120]
[343023040,1732291845885,-500.0,0.00096353,120]
[343023041,1732291845895,-500.0,0.00096353,120]
[343023042,1732291845904,-673654.7582,0.00096354,120]
[343023043,1732291845914,-565.1159,0.00096354,120]
[343023044,1732291845924,-545.038209,0.00096354,120]
[343023045,1732291845933,-545.038209,0.00096354,120]
[343023046,1732291845942,-194.967649,0.00096354,120]
[343023047,1732291845951,-194.967649,0.00096354,120]
[343023048,1732291845961,-151.0,0.00096354,120]
[343023049,1732291845971,-151.0,0.00096354,120]
[343023050,1732291845981,-413.22955662,0.00096384,120]
[343023051,1732291845990,-4000.0,0.000964,120]
[343023052,1732291846000,-151.17,0.000964,120]
[343023053,1732291846010,-2687.83391778,0.000964,15]
[343023054,1732291846019,-3995.028129,0.00096438,120]
[343023055,1732291846028,-11175.5798,0.00096454,120]
[343023056,1732291846037,-2304.6518,0.00096454,120]
[343023057,1732291846047,-916.74,0.00096485,120]
[343023058,1732291846056,-364.19886339,0.00096485,120]
[343023059,1732291846066,-12067.8255,0.00096496,120]
[343023060,1732291846075,-765.74205276,0.00096501,120]
[343023061,1732291846086,-3995.028129,0.00096513,120]
[343023062,1732291846095,-700.0,0.00096533,120]
[343023063,1732291846105,-171.98,0.00096553,2]
[343023064,1732291846114,-3995.028129,0.00096554,120]
[343023065,1732291846124,-765.74205276,0.00096564,120]
[343023066,1732291846133,-1000.0,0.00096568,120]
[343023068,1732291846143,-510.4835,0.00096569,30]
[343023069,1732291846152,-765.74205276,0.00096577,120]
[343023070,1732291846162,-150.0,0.00096578,120]
[343023071,1732291846174,-413.22955662,0.00096591,120]
[343023072,1732291846184,-150.0,0.00096618,90]
[343023073,1732291846193,-150.0,0.00096618,90]
[343023074,1732291846203,-1000.0,0.00096627,120]
[343023075,1732291846213,-150.0,0.00096633,90]
[343023076,1732291846223,-150.0,0.00096634,90]
[343023077,1732291846232,-150.0,0.00096637,90]
[343023078,1732291846241,-150.0,0.0009664,90]
[343023079,1732291846253,-150.0,0.00096643,90]
[343023080,1732291846263,-150.0,0.00096653,90]
[343023081,1732291846272,-150.0,0.00096657,90]
[343023082,1732291846281,-416.0,0.00096658,120]
[343023083,1732291846291,-268.79223659,0.0009666,85]
[343023084,1732291846300,-150.0,0.0009666,90]
[343023085,1732291846310,-500.0,0.0009666,120]
[343023086,1732291846319,-500.0,0.0009666,120]
[343023087,1732291846329,-500.0,0.0009666,120]
[343023088,1732291846339,-500.0,0.0009666,120]
[343023089,1732291846348,-500.0,0.0009666,120]
[343023090,1732291846357,-639.7,0.0009666,2]
[343023091,1732291846367,-174.02457337,0.0009666,120]
[343023092,1732291846376,-500.0,0.0009666,120]
[343023093,1732291846385,-378.80252634,0.0009666,120]
[343023094,1732291846394,-1362.00446858,0.00096661,2]
[343023095,1732291846403,-150.0,0.00096662,90]
[343023096,1732291846412,-150.0,0.00096665,90]
[343023097,1732291846422,-150.0,0.00096667,90]